Cogmind - Beta 10.1 @@@ ROGUE MODE // 2020.09.21 @ 18:10:58 Player: derk Result: Destroyed by H-55 Commando with Assault Rifle Performance ------------- Evolutions (2) 1000 Regions Visited (5) 1000 Robots Destroyed (19) 95 Value Destroyed (604) 604 Prototype IDs (23) 460 Alien Tech Used (0) 0 Bonus (399) 399 TOTAL SCORE: 3558 Bonus ------- Follower Combat Kills 99 Aligned with FarCom 300 Cogmind --------- Core Integrity 0/550 Matter 290/300 Energy 80/100 System Corruption 0% Temperature Cool (0) Movement Core (50) Location -8/Materials Parts ------- > --- POWER (1) -------- (None) > --- PROPULSION (2) --- (None) > --- UTILITY (6) ------ Improved Heat Sink Targeting Computer Hacking Suite System Shield > --- WEAPON (2) ------- (None) > --- INVENTORY (4) ---- High-capacity Storage Unit High-capacity Storage Unit High-capacity Storage Unit Trap Reconfigurator Peak State ------------ > --- POWER ------------ Ion Engine > --- PROPULSION ------- Wheel Compact Wheel > --- UTILITY ---------- Cooling System High-capacity Storage Unit High-capacity Storage Unit High-capacity Storage Unit Targeting Computer Trap Reconfigurator > --- WEAPON ----------- EM Pulse Gun Small Laser > --- INVENTORY -------- Light Ion Engine Reinforced Deuterium Engine Light Fission Core Light Treads Improved Heat Sink High-capacity Storage Unit High-capacity Storage Unit High-capacity Storage Unit Large Matter Pod Hacking Suite System Shield Datajack Mace Blade Trap Blade Trap Blade Trap Blade Trap [Rating: 23] Favorites ----------- Power Light Ion Engine Engine Light Ion Engine Propulsion Compact Wheel Treads Light Treads Wheel Compact Wheel Flight Unit Flight Unit Utility High-capacity Storage Unit Device Improved Heat Sink Storage High-capacity Storage Unit Processor Targeting Computer Hackware Hacking Suite Weapon Small Laser Energy Gun Small Laser Impact Weapon Mace Build | -11 -10 -10 -10 -9 -8 ------- Run | Scr Mat Min Exi Min Mat Slots Evolved 4 | . . . . . 4 Power . | . . . . . . Propulsion . | . . . . . . Utility 4 | . . . . . 4 Weapon . | . . . . . . Parts Attached 37 | 8 6 2 3 2 16 Power 4 | 1 . . 1 1 1 Engine 4 | 1 . . 1 1 1 Core . | . . . . . . Reactor . | . . . . . . Propulsion 8 | 3 1 2 . . 2 Treads 4 | 2 1 . . . 1 Leg . | . . . . . . Wheel 3 | 1 . 2 . . . Hover . | . . . . . . Flight 1 | . . . . . 1 Utility 16 | 2 . . 2 . 12 Device 6 | . . . . . 6 Storage 7 | 2 . . 2 . 3 Processor 1 | . . . . . 1 Hackware 2 | . . . . . 2 Protection . | . . . . . . Artifact . | . . . . . . Weapon 9 | 2 5 . . 1 1 Energy Gun 6 | 2 3 . . 1 . Energy Cannon . | . . . . . . Ballistic Gun . | . . . . . . Ballistic Cannon . | . . . . . . Launcher . | . . . . . . Special Weapon . | . . . . . . Impact Weapon 3 | . 2 . . . 1 Slashing Weapon . | . . . . . . Piercing Weapon . | . . . . . . Special Melee Weapon . | . . . . . . Unidentified Prototypes . | . . . . . . Parts Lost 16 | . 5 . . . 11 Power 2 | . . . . . 2 Propulsion 5 | . 1 . . . 4 Utility 2 | . . . . . 2 Weapon 7 | . 4 . . . 3 Highest Loss Streak 4 | . 3 . . . 4 Average Slot Usage (%) 96 | . 92 100 100 100 85 Engine 12 | . 14 14 14 14 6 Treads 4 | . 28 . . . 3 Wheel 20 | . . 28 28 28 9 Device 2 | . . . . . 14 Storage 27 | . 28 28 28 28 26 Processor 1 | . . . . . 9 Energy Gun 15 | . 11 14 14 23 7 Impact Weapon 8 | . 9 14 14 4 4 Naked Turns . | . . . . . . Heaviest Build 107 | 17 17 16 70 72 107 Greatest Support 40 | 40 40 26 26 26 26 Greatest Overweight (x) 33 | . . . 2 2 33 Average Overweight (x) 1 | . . . . 2 4 Largest Inventory Capacity 28 | 8 8 8 20 20 28 Average Capacity 16 | 5 8 8 11 20 26 Most Carried 20 | 5 8 8 15 20 19 Average Carried 12 | 3 7 8 9 17 14 Final Capacity 20 | 8 8 8 20 20 4 Final Carried 20 | 5 8 8 15 20 4 Class Distribution -------------------- 44% | Mutant 31% | Trapper-Mutant 22% | Hauler-Mutant Dominant Class ---------------- Mutant | -10/Materials Mutant | -10/Mines Mutant | -10/Exiles Hauler-Mutant | -9/Mines Trapper-Mutant | -8/Materials Resources | -11 -10 -10 -10 -9 -8 ----------- Run | Scr Mat Min Exi Min Mat Matter Collected 555 | 280 45 . 40 70 120 Remotely . | . . . . . . Salvage Created 839 | 93 259 . . 50 437 Parts 26 | 2 9 . . 1 14 Haulers Intercepted 1 | . 1 . . . . Recyclers Shooed . | . . . . . . Parts Field Recycled . | . . . . . . Retrieved Matter . | . . . . . . Parts Self-Destructed . | . . . . . . Prevented . | . . . . . . Kills | -11 -10 -10 -10 -9 -8 ------- Run | Scr Mat Min Exi Min Mat Combat Hostiles Destroyed 13 | . 5 . . 1 7 Melee 4 | . 2 . . . 2 Guns 4 | . 2 . . 1 1 AOE 1 | . . . . . 1 Classes Destroyed 8 | 1 2 . . 1 4 Builder 1 | . . . . . 1 Hauler 1 | . 1 . . . . Recycler 2 | 1 . . . . 1 Operator 2 | . . . . . 2 Swarmer 1 | . . . . . 1 Grunt 10 | . 5 . . . 5 Duelist 1 | . . . . 1 . Hunter 1 | . . . . . 1 Best Kill Streak 3 | 1 2 . . 1 3 Combat Bots Only 2 | . 2 . . 1 2 Max Kills in Single Turn 1 | 1 1 . . 1 1 Gunslinging . | . . . . . . Exploded 1 | . . . . . 1 Melee 1 | . 1 . . . 1 Uniques/NPCs Destroyed . | . . . . . . Combat | -11 -10 -10 -10 -9 -8 -------- Run | Scr Mat Min Exi Min Mat Damage Taken 2315 | . 641 . . 117 1557 Core 681 | . 97 . . 34 550 Absorbed by Shields . | . . . . . . Core Remaining (%) 73 | 100 . . . 47 . Volleys Fired 55 | 2 19 . . 17 17 Largest 2 | 2 2 . . 2 2 Hottest 90 | 90 90 . . 80 80 Shots Fired 79 | 4 25 . . 22 28 Gun 79 | 4 25 . . 22 28 Cannon . | . . . . . . Launcher . | . . . . . . Special . | . . . . . . Kinetic . | . . . . . . Thermal 36 | 2 6 . . 17 11 Explosive . | . . . . . . Electromagnetic 43 | 2 19 . . 5 17 Robot Hit Streak 15 | 4 15 . . 4 4 Robot Miss Streak 5 | . 1 . . 5 3 Penetration Max . | . . . . . . Secondary Targets . | . . . . . . Shots Hit Robots 81 | 4 26 . . 12 39 Core Hits 24 | 2 7 . . 2 13 Critical Hits . | . . . . . . Critical Kills . | . . . . . . Critical Parts Destroyed . | . . . . . . Melee Attacks 39 | . 8 . . . 31 Impact 39 | . 8 . . . 31 Slashing . | . . . . . . Piercing . | . . . . . . Sneak Attacks 2 | . 1 . . . 1 Combat Hostiles . | . . . . . . Follow-up Attacks . | . . . . . . Damage Inflicted 1545 | 50 476 . . 151 868 Guns 673 | 50 278 . . 151 194 Cannons . | . . . . . . Explosions 158 | . 52 . . . 106 Melee 712 | . 144 . . . 568 Ramming 2 | . 2 . . . . Kinetic . | . . . . . . Thermal 398 | 25 115 . . 110 148 Explosive . | . . . . . . Electromagnetic 433 | 25 215 . . 41 152 Impact 712 | . 144 . . . 568 Slashing . | . . . . . . Piercing . | . . . . . . Highest Corruption . | . . . . . . Average Corruption . | . . . . . . Corruption Purged . | . . . . . . Overload Shots . | . . . . . . Overflow Damage 79 | . 36 . . . 43 Projectiles . | . . . . . . Explosions 17 | . . . . . 17 Melee 62 | . 36 . . . 26 Knockbacks 2 | . . . . . 2 Impact 2 | . . . . . 2 Kinetic . | . . . . . . Secondary . | . . . . . . Self-Inflicted Damage 31 | . 31 . . . . Shots 1 | . 1 . . . . Rammed . | . . . . . . Targets Rammed 1 | . 1 . . . . Kicked . | . . . . . . Crushed 1 | . 1 . . . . Highest Temperature 210 | 60 210 . . 129 . Average Temperature 74 | 30 85 . . 61 . Received Heat Transfer 642 | . 300 . . 39 303 Siege Activations . | . . . . . . Robots Corrupted 2 | . 1 . . . 1 Combat Hostiles 2 | . 1 . . . 1 Parts Fried 11 | . 4 . . . 7 Impact Corruptions 8 | . 2 . . . 6 Robots Melted . | . . . . . . Combat Hostiles . | . . . . . . Parts Melted 2 | . . . . 2 . Heat Transferred 809 | 74 285 . . 250 200 Parts Sabotaged . | . . . . . . Parts Stolen . | . . . . . . Parts Stripped . | . . . . . . Power Chain Reactions 2 | . 1 . . . 1 Missiles Intercepted . | . . . . . . Alert | -11 -10 -10 -10 -9 -8 ------- Run | Scr Mat Min Exi Min Mat Peak Influence 137 | 5 100 39 . 108 137 Initial 39 | . 3 39 . . . Average 47 | 2 65 39 . 39 62 Maximum Alert Level . | . . . . . . Low Security (%) 100 | 100 100 100 . 100 100 Level 1 . | . . . . . . Level 2 . | . . . . . . Level 3 . | . . . . . . Level 4 . | . . . . . . Level 5 . | . . . . . . High Security . | . . . . . . Max Security . | . . . . . . Squads Dispatched 4 | . 1 . . . 3 Investigation . | . . . . . . Extermination . | . . . . . . Reinforcement 4 | . 1 . . . 3 Assault . | . . . . . . Garrison . | . . . . . . Intercept . | . . . . . . Construction Impeded . | . . . . . . Haulers Reinforced . | . . . . . . Stealth | -11 -10 -10 -10 -9 -8 --------- Run | Scr Mat Min Exi Min Mat Distress Signals 5 | . 1 . . 1 3 Communications Jammed . | . . . . . . Distress Signals . | . . . . . . Times Spotted 42 | . 9 . . 8 25 Peak Tracking Total 9 | . 3 . . 4 9 Tactical Retreats 4 | . 1 . . 2 1 Traps | -11 -10 -10 -10 -9 -8 ------- Run | Scr Mat Min Exi Min Mat Traps Triggered 2 | . 2 . . . . Indirectly . | . . . . . . Trap Hack Attempts . | . . . . . . Triggered . | . . . . . . Disarmed . | . . . . . . Reprogrammed . | . . . . . . Reused 2 | . . . . . 2 Traps Reconfigurated 4 | . . . . . 4 Traps Extracted . | . . . . . . Installed 3 | . . . . . 3 Triggered 2 | . . . . . 2 Exploded 1 | . . . . 1 . Machines | -11 -10 -10 -10 -9 -8 ---------- Run | Scr Mat Min Exi Min Mat Machines Disabled 2 | . 1 . . . 1 Max in Single Turn 1 | . 1 . . . . Machines Sabotaged . | . . . . . . Garrisons Compromised . | . . . . . . Overloaded Fab Kills . | . . . . . . Fab Network Shutdowns . | . . . . . . Hacking | -11 -10 -10 -10 -9 -8 --------- Run | Scr Mat Min Exi Min Mat Machines Accessed 4 | . 1 . 3 . . Terminals 1 | . 1 . . . . Fabricators . | . . . . . . Repair Stations . | . . . . . . Recycling Units . | . . . . . . Scanalyzers . | . . . . . . Garrison Access . | . . . . . . Total Hacks 8 | . 3 . 5 . . Successful 5 | . . . 5 . . Failed 3 | . 3 . . . . Catastrophic . | . . . . . . Database Lockouts . | . . . . . . Manual 1 | . . . 1 . . Terminals 3 | . 3 . . . . Fabricators . | . . . . . . Repair Stations . | . . . . . . Recycling Units . | . . . . . . Scanalyzers . | . . . . . . Garrison Access . | . . . . . . Terminal Hacks 5 | . . . 5 . . Record 4 | . . . 4 . . EX-Prototype ID Bank 1 | . . . 1 . . Fabricator Hacks . | . . . . . . Repair Station Hacks . | . . . . . . Recycling Unit Hacks . | . . . . . . Scanalyzer . | . . . . . . Garrison Access Hacks . | . . . . . . Unauthorized Hacks . | . . . . . . Terminals . | . . . . . . Fabricators . | . . . . . . Repair Stations . | . . . . . . Recycling Units . | . . . . . . Scanalyzers . | . . . . . . Garrison Access . | . . . . . . Data Cores Recovered . | . . . . . . Used . | . . . . . . Hacking Detections 1 | . 1 . . . . Full Trace Events 1 | . 1 . . . . Feedback Events . | . . . . . . Feedback Blocked . | . . . . . . Robot Schematics Acquired . | . . . . . . Robots Built . | . . . . . . Matter . | . . . . . . Time . | . . . . . . Total Robot Build Rating . | . . . . . . Part Schematics Acquired . | . . . . . . Parts Built . | . . . . . . Matter . | . . . . . . Time . | . . . . . . Total Part Build Rating . | . . . . . . Parts Repaired . | . . . . . . Time . | . . . . . . Parts Recycled . | . . . . . . Recycled Matter . | . . . . . . Retrieved Matter . | . . . . . . Retrieved Components . | . . . . . . Parts Scanalyzed . | . . . . . . Part Schematics Acquired . | . . . . . . Parts Damaged . | . . . . . . Bothacking | -11 -10 -10 -10 -9 -8 ------------ Run | Scr Mat Min Exi Min Mat Used RIF Installer . | . . . . . . Robots Hacked . | . . . . . . Non-combat . | . . . . . . Combat . | . . . . . . Robot Hacks Applied . | . . . . . . Relay Couplers Released . | . . . . . . Robots Rewired . | . . . . . . Allies Hacked . | . . . . . . Hacks Repelled . | . . . . . . Allies | -11 -10 -10 -10 -9 -8 -------- Run | Scr Mat Min Exi Min Mat Total Allies 3 | . . 3 . . . Largest Group 3 | . . 3 3 3 1 Highest-Rated Group 40 | . . 40 40 40 16 Highest-Rated Ally 16 | . . 16 16 16 16 Total Orders . | . . . . . . Ally Attacks 35 | . . . . 29 6 Total Damage 408 | . . . . 332 76 Kills 6 | . . . . 6 . Allies Corrupted . | . . . . . . Allies Melted . | . . . . . . Intel | -11 -10 -10 -10 -9 -8 ------- Run | Scr Mat Min Exi Min Mat Robot Analysis Total . | . . . . . . Derelict Logs Recovered 2 | . . 1 . 1 . Drone Launches . | . . . . . . Drone Recoveries . | . . . . . . Exploration | -11 -10 -10 -10 -9 -8 ------------- Run | Scr Mat Min Exi Min Mat Turns Passed 2410 | 84 302 92 638 849 445 Spaces Moved 1720 | 45 136 89 650 676 124 Core 22 | 1 . . . . 21 Treads 194 | 34 136 . . . 24 Legs . | . . . . . . Wheels 1502 | 10 . 89 650 676 77 Hover . | . . . . . . Flight 2 | . . . . . 2 Fastest Speed 50 | 50 160 90 90 110 50 Average Speed 113 | 139 160 90 94 110 190 Slowest Speed 1700 | 160 160 90 110 110 1700 Overloaded Moves . | . . . . . . Propulsion Burnouts . | . . . . . . Robots Hopped . | . . . . . . Cave-ins Triggered . | . . . . . . Exploration Rate (%) 39 | 4 28 18 79 94 14 Regions Visited 5 Branch Regions 3 Pre-discovered Areas 2 | . . 1 . 1 . Known Exits Taken . | . . . . . . Unknown Exits Taken 5 | 1 1 1 1 1 . Scrap Searched 2 | . . . . 2 . Spaces Dug 1 | . 1 . . . . Terrain Destroyed 6 | . 4 . . . 2 Melee 1 | . 1 . . . . Projectile . | . . . . . . AOE 5 | . 3 . . . 2 Terrain Rammed . | . . . . . . Walls Destroyed . | . . . . . . Machines Disabled . | . . . . . . Actions | -11 -10 -10 -10 -9 -8 --------- Run | Scr Mat Min Exi Min Mat Total 2035 | 59 183 99 673 760 261 Wait 134 | . 5 9 6 58 56 Move 1715 | 44 135 88 649 675 124 Hop . | . . . . . . Pick Up 31 | 4 7 . 10 6 4 Fast Attach 12 | 8 3 . . . 1 Attach 14 | . 3 . . . 11 Detach 4 | 1 . . . . 3 Swap 11 | . . 2 3 2 4 Drop 16 | . 2 . 5 2 7 Fire 55 | 2 19 . . 17 17 Melee 39 | . 8 . . . 31 Ram . | . . . . . . Kick . | . . . . . . Crush 1 | . 1 . . . . Escape Stasis . | . . . . . . Rewire . | . . . . . . Trap 3 | . . . . . 3 Miscellaneous . | . . . . . . Route ------- -11/Scrapyard -10/Materials -10/Mines -10/Exiles -9/Mines (discovered 2 exits: [*Mat x2]) -8/Materials History --------- Turn | Location | Event 32 | -11/Scrapyard | Discovered new exit (range 16) 85 | -11/Scrapyard | Entered Materials 114 | -10/Materials | Discovered new exit (range 14) 238 | -10/Materials | Lost 3 parts (3w) 329 | -10/Materials | Build established: Mutant 387 | -10/Materials | Entered Mines 394 | -10/Mines | Assisted by bots powering up and referring to "LRC-V3" 407 | -10/Mines | Learned location of Mines (-9) 464 | -10/Mines | Deemed a non-threat by the Exiles lab entrance 465 | -10/Mines | Discovered new exit (range 5) 479 | -10/Mines | Entered Exiles 479 | -10/Exiles | Accompanied by 3 allies 508 | -10/Exiles | Met 8R-AWN 522 | -10/Exiles | Met EX-HEX 555 | -10/Exiles | Met EX-BIN 566 | -10/Exiles | Aligned with FarCom system 567 | -10/Exiles | Given EX-Vault access code 588 | -10/Exiles | Opened EX-Vault 634 | -10/Exiles | Warned to stay clear of 0b10 Research branches 726 | -10/Exiles | Found Trap Reconfigurator 771 | -10/Exiles | Met EX-DEC 1003 | -10/Exiles | Visited The Gauntlet 1101 | -10/Exiles | Discovered new exit (range 10) 1117 | -10/Exiles | Left Exiles lab with Trap Reconfigurator 1117 | -10/Exiles | Entered Mines 1117 | -9/Mines | Accompanied by 3 allies 1262 | -9/Mines | Learned Materials emergency access door positions 1364 | -9/Mines | Discovered new exit (range 7) 1377 | -9/Mines | Build established: Hauler-Mutant 1590 | -9/Mines | Found a hidden stash of uninstalled traps 1621 | -9/Mines | Discovered new exit (range 5) 1706 | -9/Mines | Core integrity fell below 50% 1864 | -9/Mines | Learned location of Storage (-9) 1891 | -9/Mines | Build established: Trapper-Mutant 1966 | -9/Mines | Entered Materials 1966 | -8/Materials | Accompanied by 1 ally 1966 | -8/Materials | Evolved 4 slots: Utility x4 2197 | -8/Materials | Lost 3 parts (1n2w) 2307 | -8/Materials | Lost 4 parts (2p1n1u) 2355 | -8/Materials | Core integrity fell below 50% 2384 | -8/Materials | Core integrity fell below 20% 2411 | -8/Materials | Destroyed by H-55 Commando with Assault Rifle Last Messages --------------- 02384_ K-01 Serf collects debris. 02384_ U-05 Engineer builds a Wall. 02385_ U-05 Engineer lays Concrete. 02385_ K-01 Serf collects debris. 02386_ U-05 Engineer lays Concrete. 02386_ Penetrated by Slug. 02387_ U-05 Engineer lays Concrete. 02387_ K-01 Serf collects debris. 02388_ U-05 Engineer lays Concrete. 02388_ Acquired 25 matter. 02394_ Dropped Blade Trap. 02398_ Slug penetrates Wall. 02398_ Mace destroyed. 02400_ Installed Blade Trap. 02401_ Dropped Hcp. Storage Unit. 02401_ Slug penetrates Wall. 02403_ U-05 Engineer lays Concrete. 02404_ Slug penetrates Wall. 02407_ K-01 Serf cleans the Terminal. 02411_ Penetrated by Slug. Map ----- +----------------------------------------------------+ | ?????????????????????????????????????????????????? | | ?????????????????????????????????????????????????? | | ?????????????????????????????????????????????????? | | ?????????????????????????????????????????????????? | | ?????????????????????????????????????????????????? | | ?????????????????????????????????????????????????? | | ?????????????????????????????????????????????????? | | ?????????????????????????????????????????????????? | | ?????????????????????????????????????????????????? | | ?????????????????????????????????????????????????? | | ?????????????????????????????w???????????????????? | | ?????????????????????????????????????????????????? | | ?????????????????????????????????????????????????? | | ?????????????????????????????????????????????????? | | ???????????????????####?#####????????????????????? | | ???????????????????# ? #????????????????????? | | ???????????????????# """ # ?????????????????? | | ???????????????????# """ # ?????????????????? | | ???????????????????# """ [# #????????????????? | | ???????????????????# # #????????????????? | | ?????????????#####?# """ # #????????????????? | | ?????????????# #?# """ # #????????????????? | | ????????###### # #?# """ # #????????????????? | | +?????### #?# = # #????????????????? | | !! ##"" """" ######+##### ^*######???????????? | | !! " ^ ####### @ ^w o ????????? | | # %;% %r ????????? | | """ " #%!/ "" w ????????? | | ?""" " #^%* T" ####### ?????????? | | ??"" " h!*& r % ""k #########????????? | | ? # ####### % # #????????? | | ! " " #?## + """ ""?????????? | | ###+#" "###?## # """ Y"?????????? | | ?? """""""""###???## # """ ""?????????? | | ?? + ""????? # gg " #? ?????????? | | ?" ] ## "T??????/g """" #?######?????????? | | ?" ?# ??????#g """"" #????????????????? | | ?? #####?# ??????#g """" #????????????????? | | ??? ??????###???????#g """ #????????????????? | | ??????????????######## % #????????????????? | | ??????????????# # #????????????????? | | * ####?????# "T"!# #????????????????? | | ?? ## !*%/*/ #????????????????? | | ?? T + =% # #????????????????? | | ???????## ## # #????????????????? | | ????????#?????# # ########?????????? | | ??????????????##+##+## !![ #?????????? | | ???????????????# ![[ #?????????? | | ???????????????# #### ![[ #?????????? | | ??????????????????#####+############ #?????????? | +----------------------------------------------------+ Best States ------------- Heat Dissipation 67 Energy Generation 10 Energy Capacity 250 Matter Stores 450 Matter Capacity 450 Sight Range 16 Terrain Scan Density 10 Evasion (%) 50 Targeting Accuracy 5 Recoil Reduction 2 Offensive Hacking 10 Defensive Hacking 10 Item Schematics ----------------- None Robot Schematics ------------------ None Fabricated ------------ Nothing Alien Tech Used ----------------- None Achievements -------------- None Challenges ------------ None Game ------ Seed AssembledAntimissileBooster Manual? 0 Play Time 00:25:56 Cumulative 119.0 hours Start 2020.09.21 @ 14:24:53 End 2020.09.21 @ 18:10:58 Sessions 3 Manual Loads 0 Difficulty Rogue Special Mode None Game No. 66 Rogue 66 Adventurer 0 Explorer 0 Win Type - Total 1 Types 1/0/0/0/0/0/0/0/0 Lore% 42 Gallery% 70 Achievement% 53 Wizard Run 0 Options --------- ASCII 0 Keyboard 0 Movement Numpad Keybinds 0 Fullscreen 1 Font 18/SmallcapsGlow Map View 76x50 Tactical HUD 1 Map Filters NONE Filters NONE Steam 1 RUN: 3911a49a-0de0-4ee3-a9fc-74e01ef05177